bitfinex/quotes_ETHUSD_20251127
["timestamp","ask_amount","ask_price","bid_price","bid_amount"]
[1764220983809,0.002,3040.7,3040.6,7.34997804]
[1764220985410,0.002,3040.7,3040.6,9.11892178]
[1764220987005,0.002,3040.7,3040.6,7.75548204]
[1764220987509,0.002,3040.7,3040.6,9.52268146]
[1764220987814,0.002,3040.7,3040.6,7.75548204]
[1764220988215,0.002,3040.7,3040.6,9.52216544]
[1764220990124,0.002,3040.7,3040.6,9.65384119]
[1764220991316,0.002,3040.7,3040.6,7.8834006]
[1764220992417,0.002,3040.7,3040.6,11.6934006]
[1764220992712,0.002,3040.9,3040.7,1.13109811]
[1764220992908,0.002,3040.9,3040.8,5.21920978]
[1764220993109,0.002,3040.9,3040.8,5.69870978]
[1764220993311,0.002,3040.9,3040.8,9.11898686]
[1764220994023,0.002,3040.9,3040.8,7.69255465]
[1764220994226,0.002,3040.9,3040.8,10.25008497]
[1764220996722,0.002,3040.9,3040.8,15.22792177]
[1764220997133,0.002,3041.4,3041.1,1.034604]
[1764220997425,0.002,3041.4,3041.2,9.02807194]
[1764220997607,0.002,3041.4,3041.2,7.12265354]
[1764220997805,0.002,3041.4,3041.2,7.25430155]
[1764220998021,0.002,3041.4,3041.2,9.63921995]
[1764220998607,0.002,3041.4,3041.2,12.92739567]
[1764220999010,0.002,3041.4,3041.2,10.33447727]
[1764220999209,0.002,3041.4,3041.2,10.54247727]
[1764221000026,0.002,3041.4,3041.2,10.13697327]
[1764221001533,0.002,3041.4,3041.2,12.52189167]
[1764221001910,0.002,3041.4,3041.2,12.92739567]
[1764221002102,0.002,3041.4,3041.2,11.75215966]
[1764221003228,0.002,3041.4,3041.2,13.51495327]
[1764221003429,0.002,3041.8,3041.5,0.405504]
[1764221003627,0.002,3041.8,3041.6,7.27239185]
[1764221003825,0.002,3041.8,3041.6,7.96794957]
[1764221003999,0.002,3041.8,3041.6,8.83604957]
[1764221004506,0.002,3041.8,3041.6,10.59923487]
[1764221005829,0.1806,3043.0,3041.7,2.06799811]
[1764221006018,0.491,3043.2,3042.9,4.7698368]
[1764221006203,0.491,3043.2,3042.9,2.3849184]
[1764221006407,0.491,3043.2,3043.0,0.208]
[1764221006730,0.491,3043.2,3042.7,3.11051251]
[1764221006905,0.6724,3042.8,3042.7,3.11051251]
[1764221007104,0.6724,3042.8,3042.7,4.33498269]
[1764221007319,1.1634,3042.8,3042.7,4.12698269]
[1764221007631,1.1634,3042.8,3042.7,4.33498269]
[1764221007961,3.2857011,3043.5,3042.7,4.33498269]
[1764221007962,0.1923,3044.0,3042.7,13.75034177]
[1764221008104,0.1923,3044.0,3043.5,2.3849184]
[1764221008304,0.491,3043.9,3043.5,2.3849184]
[1764221008505,0.4803,3043.6,3043.4,0.208]
[1764221008920,0.7478,3043.5,3043.4,0.208]
[1764221009132,0.7478,3043.5,3042.9,1.08972048]
[1764221009432,0.491,3043.4,3043.0,0.91368871]
[1764221009652,0.491,3043.4,3043.1,0.70568871]
[1764221009950,0.491,3043.4,3042.5,0.88172048]
[1764221009951,0.6724,3042.9,3042.5,0.88172048]
[1764221010134,0.4886,3042.8,3042.6,0.70577637]
[1764221010306,0.4886,3042.8,3042.7,0.70577637]
[1764221010512,0.1921,3042.9,3042.7,3.09069477]
[1764221010707,0.1921,3042.9,3042.7,0.30906948]
[1764221010708,0.4803,3042.8,3042.7,0.30906948]
[1764221010926,0.4803,3042.8,3042.7,0.91370769]
[1764221011149,0.9713,3042.8,3042.7,0.91370769]
[1764221011374,0.9713,3042.8,3042.7,0.70570769]
[1764221012761,4.25774669,3042.8,3042.7,0.70570769]
[1764221012935,0.9713,3042.8,3042.7,0.70570769]
[1764221016448,0.4803,3042.8,3042.7,0.70570769]
[1764221016754,0.9713,3042.8,3042.7,0.70570769]
[1764221017662,5.42830472,3042.8,3042.7,0.70570769]
[1764221017851,0.72559411,3042.7,3042.0,0.88172048]
[1764221018053,0.2568,3042.5,3042.1,0.70640417]
[1764221018245,3.54365201,3042.5,3042.2,0.70640417]
[1764221018449,3.54365201,3042.5,3041.9,0.88172048]
[1764221018450,0.491,3042.4,3042.3,0.70640417]
[1764221018839,0.9713,3042.4,3042.3,0.70640417]
[1764221019039,1.7257834,3042.4,3042.3,0.70640417]
[1764221019240,1.7257834,3042.4,3042.3,0.70675534]
[1764221019852,2.0314208,3042.4,3041.8,0.88172048]
[1764221020171,0.7877374,3042.3,3041.9,0.70679659]
[1764221020372,0.7877374,3042.3,3042.0,0.70679659]
[1764221020373,0.4821,3042.3,3042.0,0.70679659]
[1764221020583,0.4855,3042.2,3042.1,0.70679659]
[1764221020764,0.9764,3042.2,3042.1,0.70679659]
[1764221024978,0.002,3042.8,3042.1,9.63886028]
[1764221025220,0.30611072,3042.7,3042.4,3.26922222]
[1764221025374,0.002,3042.8,3042.5,0.70679659]
[1764221025564,0.4855,3042.7,3042.6,0.70679659]
[1764221026096,1.28258376,3042.7,3042.6,0.70679659]
[1764221026784,0.9764,3042.7,3042.6,0.70679659]
[1764221027568,0.4909,3042.7,3042.6,0.70679659]
[1764221027792,0.4909,3042.7,3042.6,1.12519847]
[1764221028008,0.002,3042.8,3042.6,4.47115174]
[1764221028289,0.002,3042.8,3042.7,1.59110041]
[1764221028490,0.4929,3042.8,3042.7,1.59110041]
[1764221028691,3.77934669,3042.8,3042.7,0.70679659]
[1764221029009,0.9784,3042.8,3042.7,0.70679659]
[1764221029746,1.28467925,3042.8,3042.7,0.70679659]
[1764221030932,0.79917925,3042.8,3042.7,3.09171499]
[1764221031133,0.79921695,3042.8,3042.7,0.70679659]
[1764221031326,1.28471695,3042.8,3042.7,0.70679659]
[1764221033634,0.4929,3042.8,3042.7,0.70679659]
[1764221033837,0.4929,3042.8,3042.7,1.43306348]
[1764221034043,0.002,3042.8,3042.7,1.64106348]
[1764221034245,0.002,3042.8,3042.7,5.40531818]
[1764221034763,0.4929,3042.8,3042.7,1.43306348]
[1764221034967,0.9784,3042.8,3042.7,0.70679659]
[1764221035760,1.28481945,3042.8,3042.7,0.70679659]
[1764221039154,0.79931945,3042.8,3042.7,0.70679659]
[1764221039564,0.002,3042.8,3042.7,1.45385746]
[1764221040358,0.002,3042.8,3042.7,3.56941499]
[1764221044265,0.002,3042.8,3042.7,4.45371881]
[1764221045333,0.002,3042.8,3042.7,7.74027351]
[1764221045631,0.002,3042.8,3042.7,6.87036969]
[1764221045836,0.002,3042.8,3042.7,8.54610649]
[1764221046030,0.482,3042.8,3042.7,6.06476082]
[1764221046258,0.482,3042.8,3042.7,3.88884242]
[1764221046661,0.002,3042.8,3042.7,8.37937872]
[1764221046865,0.002,3042.8,3042.7,8.87147872]
[1764221047966,0.002,3042.8,3042.7,10.05241552]
[1764221048667,0.002,3042.8,3042.7,10.52021552]
[1764221048858,0.002,3042.8,3042.7,10.05241552]
[1764221049582,0.002,3042.8,3042.7,9.33927872]
[1764221050269,0.002,3042.8,3042.7,8.87147872]
[1764221050438,0.002,3042.8,3042.7,15.52569712]
[1764221051066,0.002,3042.8,3042.7,15.93120112]
[1764221053537,0.002,3043.2,3042.8,0.405504]
[1764221053743,0.002,3043.2,3043.1,0.6612]
[1764221053963,0.002,3043.2,3043.1,7.24803769]
[1764221054179,0.002,3043.2,3043.1,9.01849303]
[1764221054467,0.002,3043.2,3043.1,9.47779303]
[1764221055968,0.002,3043.2,3043.1,7.70733769]
[1764221056165,0.002,3043.2,3043.1,9.28154154]
[1764221056368,0.002,3043.2,3043.1,11.05054544]
[1764221057143,0.002,3043.2,3043.1,14.16105795]
[1764221057343,0.002,3043.2,3043.1,12.79755805]
[1764221057570,0.002,3043.5,3043.2,0.72559411]
[1764221057745,0.002,3043.5,3043.4,7.73566704]
[1764221058045,0.002,3043.5,3043.4,11.7282624]
[1764221058353,0.002,3043.5,3043.4,12.1875624]
[1764221058554,0.002,3043.5,3043.4,9.968841]
[1764221059284,0.002,3043.5,3043.4,10.374345]
[1764221059487,0.30640189,3044.8,3043.5,1.60289811]
[1764221059644,0.1847,3044.9,3044.5,3.43441727]
[1764221059840,0.471,3044.8,3044.6,0.70679659]
[1764221060148,0.471,3044.8,3044.7,0.70679659]
[1764221060588,0.9335,3044.8,3044.7,0.70679659]
[1764221062348,0.9335,3044.8,3044.5,3.28460096]
[1764221062674,3.94289092,3045.3,3044.7,0.4718]
[1764221062865,3.94289092,3045.3,3044.5,2.5511154]
[1764221062866,0.471,3045.1,3044.5,2.5511154]
[1764221063054,0.6472,3044.6,3044.4,0.208]
[1764221063254,0.1847,3044.6,3044.5,0.70516857]
[1764221063664,0.6472,3044.6,3044.5,0.70516857]
[1764221063849,0.6472,3044.6,3044.0,0.88330187]
[1764221064049,3.75562591,3044.5,3044.1,0.70494618]
[1764221064264,3.75562591,3044.5,3044.2,0.70494618]
[1764221064448,0.471,3044.4,3043.9,0.208]
[1764221064641,0.4625,3044.0,3043.9,0.97334123]
[1764221064843,0.4625,3044.0,3043.9,1.4702062]
[1764221065149,0.4625,3044.0,3043.9,1.6782062]
[1764221065351,0.471,3044.5,3043.9,6.31852841]
[1764221065570,0.471,3044.5,3044.0,3.96039262]
[1764221065750,0.471,3044.5,3044.1,0.70486497]
[1764221065958,0.471,3044.5,3044.2,0.70486497]
[1764221066155,0.4625,3044.3,3043.8,0.88330187]
[1764221066384,7.04042746,3044.5,3043.9,0.70482217]
[1764221066547,7.04042746,3044.5,3043.6,1.09130187]
[1764221066548,0.4625,3043.7,3043.6,1.09130187]
[1764221066747,0.4625,3043.7,3043.6,0.91283663]
[1764221067367,0.9335,3043.7,3043.6,0.91283663]
[1764221067875,0.9335,3043.7,3043.6,0.70483663]
[1764221068062,0.9335,3043.7,3043.6,0.91283663]
[1764221069993,0.1847,3043.9,3043.6,4.19839552]
[1764221070278,0.1847,3043.9,3043.7,1.21300637]
[1764221070461,0.1847,3043.9,3043.8,0.70483663]
[1764221070664,0.6557,3043.9,3043.8,0.70483663]
[1764221070980,1.1182,3043.9,3043.8,0.70483663]
[1764221072159,0.471,3044.3,3043.8,1.17663663]
[1764221072377,0.471,3044.3,3043.9,0.70483663]
[1764221072577,0.471,3044.3,3044.0,0.70483663]
[1764221072881,0.471,3044.3,3043.8,3.75716397]
[1764221073078,0.471,3044.3,3043.9,0.7056232]
[1764221073268,0.471,3044.3,3044.0,0.7056232]
[1764221073468,0.471,3044.3,3043.8,4.66728376]
[1764221073469,0.4625,3044.1,3043.8,0.91014988]
[1764221073669,3.75583111,3044.3,3043.9,0.70582008]
[1764221073870,3.75583111,3044.3,3043.9,0.208]
[1764221073871,0.471,3044.2,3043.9,0.208]
[1764221074072,0.471,3044.2,3043.6,0.88330187]
[1764221074073,0.471,3044.2,3044.0,0.70585327]
[1764221074252,0.4625,3044.1,3043.8,0.208]
[1764221074456,3.28504319,3044.1,3043.9,0.70609232]
[1764221074657,3.28504319,3044.1,3044.0,0.70609232]
[1764221074962,3.74754319,3044.1,3044.0,0.70609232]
[1764221075284,4.21854319,3044.1,3044.0,0.70609232]
[1764221075595,4.21854319,3044.1,3043.6,0.88330187]
[1764221075596,8.25392381,3044.1,3043.6,0.88330187]
[1764221075761,0.5018,3043.7,3043.6,0.88330187]
[1764221075956,0.5018,3043.7,3043.6,1.58968145]
[1764221076153,0.9728,3043.7,3043.6,1.58968145]
[1764221076766,0.9728,3043.7,3043.6,0.70637958]
[1764221076965,4.25827491,3043.7,3043.6,0.70637958]
[1764221077382,5.0126383,3043.7,3043.6,0.70637958]
[1764221078892,5.31890829,3043.7,3043.5,0.001]
[1764221079079,0.9321,3043.6,3043.5,0.001]
[1764221079279,1.23835198,3043.6,3043.5,0.001]
[1764221080489,4.52393484,3043.6,3043.5,0.001]
[1764221080789,5.39878215,3043.6,3043.5,0.001]
[1764221081495,6.12437626,3043.6,3043.5,0.001]
[1764221082801,0.72559411,3043.5,3043.2,0.001]
[1764221082968,0.3185,3043.3,3043.2,0.001]
[1764221083163,0.62475198,3043.3,3043.2,0.001]
[1764221083369,1.32079659,3043.3,3043.2,0.001]
[1764221084894,5.33229744,3043.3,3043.2,0.001]
[1764221087398,4.84119744,3043.3,3043.2,0.001]
[1764221087585,0.93906339,3043.7,3043.2,0.001]
[1764221087586,0.1938,3043.9,3043.2,0.4675]
[1764221087787,0.1938,3043.9,3043.3,0.70562571]
[1764221087989,0.4954,3043.4,3043.2,0.001]
[1764221089283,0.4911,3043.6,3043.2,0.001]
[1764221090206,0.72559411,3044.2,3043.5,0.4665]
[1764221090405,0.4911,3044.1,3043.5,0.88538866]
[1764221090610,0.4954,3043.6,3043.2,0.209]
[1764221090817,0.4954,3043.6,3043.3,0.70573062]
[1764221090983,0.9865,3043.6,3043.4,0.70573062]
[1764221091313,0.9865,3043.6,3043.2,0.209]
[1764221091512,0.9865,3043.6,3043.3,0.70600484]
[1764221091714,0.6849,3043.9,3043.4,0.70600484]
[1764221091887,0.6849,3043.9,3043.2,3.9589878]
[1764221092082,3.97017862,3043.9,3043.3,1.10190098]
[1764221092299,0.4911,3043.8,3043.4,0.7060022]
[1764221092506,0.4911,3043.8,3043.5,0.7060022]
[1764221092674,0.4954,3043.5,3043.3,0.39589878]
[1764221092872,0.4954,3043.5,3043.4,0.7062249]
[1764221093108,0.4911,3043.8,3043.4,1.1727249]
[1764221093316,3.28504319,3044.1,3043.5,0.7062249]
[1764221093517,0.30608745,3044.0,3043.3,0.39589878]
[1764221093674,0.79718745,3044.0,3043.4,0.70649876]
[1764221093874,0.1938,3043.9,3043.5,0.70649876]
[1764221094176,0.1938,3043.9,3043.6,0.7066559]
[1764221094377,0.1938,3043.9,3043.3,4.14580319]
[1764221094695,0.1938,3043.9,3043.4,1.23046645]
[1764221094875,0.1938,3043.9,3043.5,0.70665594]
[1764221095075,0.1938,3043.9,3043.6,0.70665594]
[1764221095382,3.78532122,3043.9,3043.4,0.98781051]
[1764221095677,3.28517852,3044.0,3043.5,1.1708134]
[1764221095883,3.28517852,3044.0,3043.6,0.7068134]
[1764221096113,3.28708123,3044.1,3043.7,0.7068134]
[1764221096313,3.28708123,3044.1,3043.5,0.464]
[1764221096314,0.30623123,3044.0,3043.5,0.464]
[1764221096598,0.002,3044.1,3043.6,0.70696557]
[1764221096801,0.002,3044.1,3043.7,0.70696557]
[1764221096994,0.002,3044.1,3043.8,0.70696557]
[1764221097304,0.4931,3044.1,3043.9,0.70696557]
[1764221097506,0.4931,3044.1,3044.0,0.70696557]
[1764221097998,0.002,3044.1,3044.0,0.70696557]
[1764221098199,0.9885,3044.1,3044.0,0.70696557]
[1764221098590,0.9885,3044.1,3043.7,3.285472]
[1764221098807,0.9885,3044.1,3043.8,0.70701337]
[1764221099105,0.6892,3043.7,3043.5,0.88330187]
[1764221099320,0.6991,3044.0,3043.6,0.70717584]
[1764221099487,0.30632626,3043.9,3043.7,0.70713969]
[1764221099681,0.30632626,3043.9,3043.4,0.88330187]
[1764221099877,0.002,3044.1,3043.8,0.4665]
[1764221100201,0.79943628,3044.1,3043.4,0.88330187]
[1764221100401,0.30633628,3044.0,3043.5,0.70715643]
[1764221100605,0.30633628,3044.0,3043.6,0.70715643]
[1764221100801,0.79743628,3044.0,3043.7,0.70715643]
[1764221101008,0.4911,3044.0,3043.5,0.20544583]
[1764221101204,0.6849,3043.9,3043.6,0.70715521]
[1764221101404,0.4954,3043.7,3043.4,0.88330187]
[1764221101605,0.4911,3043.8,3043.2,1.17873583]
[1764221101606,0.2556,3043.5,3043.3,0.88330187]
[1764221101831,3.28552449,3043.7,3043.4,0.70726018]
[1764221102109,0.1938,3043.9,3043.5,0.70726018]
[1764221102305,0.50019518,3043.9,3043.6,1.17376018]
[1764221102514,0.50019518,3043.9,3043.7,0.70726018]
[1764221102690,0.4911,3043.8,3043.3,0.88330187]
[1764221102891,0.4954,3043.7,3043.4,0.70739237]
[1764221103096,0.4954,3043.7,3043.5,0.70739237]
[1764221103297,0.9865,3043.7,3043.6,0.70739237]
[1764221105331,0.4954,3043.7,3043.6,0.70739237]
[1764221105989,0.1938,3043.9,3043.6,1.17389237]
[1764221106189,0.50066497,3043.9,3043.7,0.70739237]
[1764221106389,0.50066497,3043.9,3043.8,0.70739237]
[1764221106689,0.002,3044.1,3043.8,2.05719424]
[1764221106908,0.002,3044.1,3044.0,0.4665]
[1764221107229,0.002,3044.1,3044.0,1.17389237]
[1764221107400,0.4974,3044.1,3044.0,0.70739237]
[1764221108787,0.002,3044.1,3044.0,1.16319237]
[1764221109024,0.002,3044.1,3044.0,1.27755822]
[1764221109319,0.9709,3044.1,3044.0,0.70739237]
[1764221112514,0.002,3044.1,3044.0,0.70739237]
[1764221113018,0.002,3044.1,3044.0,1.18179237]
[1764221113215,0.002,3044.1,3044.0,0.70739237]
[1764221115222,0.002,3044.1,3044.0,1.18179237]
[1764221117003,0.9655,3044.1,3044.0,0.70739237]
[1764221117206,0.9655,3044.1,3044.0,1.59069424]
[1764221117403,0.78723667,3044.1,3044.0,1.59069424]
[1764221117718,0.30933667,3044.1,3044.0,2.06509424]
[1764221118313,0.30933667,3044.1,3044.0,5.35024535]
[1764221118515,0.30933667,3044.1,3044.0,3.42742805]
[1764221118516,0.002,3044.1,3044.0,3.42742805]
[1764221118712,0.002,3044.1,3044.0,2.95302805]
[1764221118917,1.27286421,3044.1,3044.0,1.59069424]
[1764221119115,0.78726421,3044.1,3044.0,1.59069424]
[1764221120798,0.30936421,3044.1,3044.0,2.06509424]
[1764221121622,1.27286421,3044.1,3044.0,1.59069424]
[1764221121828,0.78726421,3044.1,3044.0,1.59069424]
[1764221122125,0.30936421,3044.1,3044.0,2.06509424]
[1764221122320,0.30936421,3044.1,3044.0,3.09891361]
[1764221122932,0.78726421,3044.1,3044.0,2.62451361]
[1764221123128,0.78726421,3044.1,3044.0,1.59069424]
[1764221123936,0.30936421,3044.1,3044.0,1.59069424]
[1764221126646,0.30936421,3044.1,3044.0,2.06509424]
[1764221127524,0.30936421,3044.1,3044.0,2.56289424]
[1764221127719,0.30936421,3044.1,3044.0,1.59069424]
[1764221127924,0.78726421,3044.1,3044.0,1.59069424]
[1764221128748,0.30936421,3044.1,3044.0,2.06509424]
[1764221128943,0.30936421,3044.1,3044.0,1.59069424]
[1764221129526,0.30936421,3044.1,3044.0,1.18179237]
[1764221131455,0.30936421,3044.1,3044.0,2.06509424]
[1764221131650,0.30936421,3044.1,3044.0,2.73870122]
[1764221132327,0.30936421,3044.1,3044.0,1.85539935]
[1764221133550,0.30936421,3044.1,3044.0,6.81608629]
[1764221133551,0.002,3044.1,3044.0,6.81608629]
[1764221133751,0.002,3044.1,3044.0,5.63835046]
[1764221133949,0.002,3044.1,3044.0,3.03739433]
[1764221134680,0.002,3044.1,3044.0,4.23627586]
[1764221136040,0.002,3044.5,3044.0,10.40010348]
[1764221136239,0.002,3044.5,3044.4,2.94997651]
[1764221136562,0.002,3044.5,3044.4,6.94208836]
[1764221136855,0.002,3044.5,3044.4,1.18179237]
[1764221137162,0.002,3044.5,3044.4,2.363774]
[1764221137453,0.002,3044.5,3044.4,8.02936999]
[1764221137626,0.002,3044.5,3044.4,9.4087302]
[1764221137834,0.002,3044.5,3044.4,3.74313421]
[1764221138145,0.002,3044.5,3044.4,7.02785369]
[1764221138755,0.002,3044.5,3044.4,3.74313421]
[1764221139152,0.002,3044.5,3044.4,7.02785369]
[1764221139968,0.002,3044.5,3044.4,3.74313421]
[1764221140166,0.002,3044.5,3044.4,5.64849348]
[1764221140333,0.002,3044.5,3044.4,6.14715925]
[1764221140841,0.002,3044.5,3044.4,5.64955925]
[1764221141233,0.002,3044.5,3044.4,4.46757762]
[1764221141661,0.002,3044.5,3044.4,4.96517762]
[1764221141869,0.002,3044.5,3044.4,8.15807753]
[1764221142032,0.002,3044.5,3044.4,6.38455295]
[1764221143472,0.002,3044.5,3044.4,5.88695295]
[1764221143677,0.491,3044.5,3044.4,1.88849654]
[1764221143835,0.491,3044.5,3044.4,0.70845814]
[1764221144037,0.9548,3044.5,3044.4,0.70845814]
[1764221144770,0.9548,3044.5,3044.4,1.593471]
[1764221144954,1.26196625,3044.5,3044.4,0.70845814]
[1764221146470,4.54657784,3044.5,3044.4,0.70845814]
[1764221146674,5.3296773,3044.5,3044.4,0.70845814]
[1764221147658,2.04510112,3044.5,3044.4,0.70845814]
[1764221147860,1.26200166,3044.5,3044.4,0.70845814]
[1764221149661,0.9548,3044.5,3044.4,0.70845814]
[1764221149865,0.002,3044.5,3044.4,1.15865814]
[1764221150552,0.491,3044.5,3044.4,0.70845814]
[1764221151781,0.002,3044.5,3044.4,0.70845814]
[1764221151978,0.491,3044.5,3044.4,0.70845814]
[1764221152285,0.9548,3044.5,3044.4,0.70845814]
[1764221152639,4.97062286,3044.5,3044.4,0.70845814]
[1764221153744,1.68601127,3044.5,3044.4,0.70845814]
[1764221154066,1.26207572,3044.5,3044.4,0.70845814]
[1764221155443,0.002,3044.5,3044.4,1.15865814]
[1764221155657,0.002,3044.5,3044.4,2.043671]
[1764221155856,0.002,3044.5,3044.4,1.593471]
[1764221156272,0.002,3044.5,3044.4,2.043671]
[1764221159277,0.491,3044.5,3044.4,1.593471]
[1764221160178,0.79848154,3044.5,3044.4,1.593471]
[1764221160475,0.491,3044.5,3044.4,1.593471]
[1764221160785,0.30948096,3044.5,3044.4,2.64951432]
[1764221160991,0.002,3044.5,3044.4,2.49433986]
[1764221161554,0.002,3044.5,3044.4,1.88849654]
[1764221161555,0.491,3044.5,3044.4,1.88849654]
[1764221161961,0.9548,3044.5,3044.4,1.88849654]
[1764221163179,0.491,3044.5,3044.4,1.88849654]
[1764221163366,0.002,3044.5,3044.4,2.33869654]
[1764221163563,0.002,3044.5,3044.4,3.3690063]
[1764221164382,0.9548,3044.5,3044.4,1.88849654]
[1764221164787,1.26249481,3044.5,3044.4,0.70845814]
[1764221165484,4.5471064,3044.5,3044.4,1.59500902]
[1764221165673,4.5471064,3044.5,3044.4,0.70845814]
[1764221168083,1.26249481,3044.5,3044.4,0.70895357]
[1764221168259,8.87375601,3044.5,3044.0,0.88719197]
[1764221168460,0.2815,3044.1,3044.0,0.88719197]
[1764221168672,0.58919481,3044.1,3044.0,1.59602116]
[1764221168863,1.07009481,3044.1,3044.0,1.59602116]
[1764221169286,1.07009481,3044.1,3044.0,0.70982919]
[1764221170109,1.07009481,3044.1,3044.0,1.59602116]
[1764221171315,0.208,3044.2,3044.0,2.06902116]
[1764221171469,0.208,3044.2,3044.1,0.70882919]
[1764221171776,0.51538492,3044.2,3044.1,1.18182919]
[1764221173392,0.21,3044.5,3044.1,8.14023866]
[1764221173574,0.30747302,3044.4,3044.2,1.59476956]
[1764221173773,0.21,3044.5,3044.3,0.70882919]
[1764221173976,0.30747492,3044.4,3044.2,0.88594037]
[1764221174291,0.78317492,3044.3,3044.2,0.88594037]
[1764221174477,0.78317492,3044.3,3044.2,1.59473931]
[1764221176271,0.30747492,3044.3,3044.2,2.43891913]
[1764221177868,0.21,3044.5,3044.2,2.43891913]
[1764221178101,0.30748403,3044.4,3044.3,0.70879894]
[1764221178498,0.30748403,3044.4,3044.3,2.06783931]
[1764221178997,0.30748403,3044.4,3044.3,2.55093931]
[1764221179175,0.30748403,3044.4,3044.3,3.95603316]
[1764221179380,0.30748403,3044.4,3044.3,3.47293316]
[1764221179873,0.78318403,3044.4,3044.3,2.99983316]
[1764221180073,1.27768403,3044.4,3044.3,0.70879894]
[1764221181085,4.56240351,3044.4,3044.3,0.70879894]
[1764221181491,3.28461159,3044.5,3044.3,0.70879894]
[1764221181801,0.2642,3044.4,3044.1,0.88594037]
[1764221181997,0.2642,3044.4,3044.2,0.70878524]
[1764221182302,0.2642,3044.4,3044.3,0.70878524]
[1764221183099,3.75691948,3044.4,3044.3,0.70878524]
[1764221183472,4.46366209,3044.4,3044.3,0.70878524]
[1764221183811,7.74838157,3044.4,3044.0,0.001]
[1764221183993,0.0026,3044.3,3044.1,0.70883786]
[1764221184201,0.0026,3044.3,3044.2,0.70883786]
[1764221184718,0.72559411,3044.2,3044.0,0.001]
[1764221184878,0.0026,3044.1,3044.0,0.001]
[1764221185077,0.2642,3044.1,3044.0,0.001]
[1764221185304,0.3958021,3044.1,3044.0,0.001]
[1764221186413,0.8013061,3044.1,3044.0,0.001]
[1764221186591,4.58617112,3044.1,3044.0,0.001]
[1764221187098,4.18066712,3044.1,3044.0,0.001]
[1764221188375,5.31176523,3044.1,3044.0,0.001]
[1764221188579,5.4108284,3044.1,3044.0,0.001]
[1764221189212,5.31176523,3044.1,3044.0,0.001]
[1764221190520,5.4108284,3044.1,3044.0,0.001]
[1764221191695,5.31176523,3044.1,3044.0,0.001]
[1764221193208,5.4108284,3044.1,3044.0,0.001]
[1764221193413,5.71708643,3044.1,3044.0,0.001]
[1764221193913,0.09906317,3043.8,3043.7,0.001]
[1764221194212,3.8927706,3043.8,3043.7,0.001]
[1764221194415,4.3462706,3043.8,3043.7,0.001]
[1764221194741,4.47790822,3043.8,3043.7,0.001]
[1764221195690,7.76327519,3043.8,3043.7,0.001]
[1764221195887,8.99884543,3043.8,3043.7,0.001]
[1764221196692,9.40434943,3043.8,3043.7,0.001]
[1764221196888,1.23016128,3043.7,3043.6,0.001]
[1764221197100,1.89345614,3043.7,3043.6,0.001]
[1764221197317,5.7136817,3043.7,3043.6,0.001]
[1764221198418,8.99915661,3043.7,3043.6,0.001]
[1764221198829,9.09821978,3043.7,3043.6,0.001]
[1764221199415,12.56221978,3043.7,3043.6,0.001]
[1764221200229,12.56157545,3043.7,3043.6,0.001]
[1764221201237,12.69322433,3043.7,3043.6,0.001]
[1764221205623,9.22922433,3043.7,3043.6,0.001]
[1764221206436,12.69322433,3043.7,3043.6,0.001]
[1764221208759,3.72273749,3043.7,3043.6,0.4818]
[1764221209059,3.72273749,3043.7,3043.6,0.001]
[1764221209060,4.17323749,3043.7,3043.6,0.001]
[1764221209343,4.8988316,3043.7,3043.6,0.001]
[1764221209550,6.40887993,3043.7,3043.6,0.001]
[1764221209722,6.5079431,3043.7,3043.6,0.001]
[1764221210413,3.78141657,3043.6,3043.3,0.001]
[1764221210607,4.54773027,3043.6,3043.3,0.001]
[1764221211821,7.83331313,3043.6,3043.3,0.001]
[1764221212022,9.43499126,3043.6,3043.3,0.001]
[1764221213963,0.09906317,3043.4,3043.3,0.001]
[1764221214162,1.46868087,3043.4,3043.3,0.001]
[1764221214364,1.47888087,3043.4,3043.3,0.001]
[1764221215367,1.23016128,3043.3,3043.2,0.001]
[1764221215567,5.18713718,3043.3,3043.2,0.001]
[1764221216071,8.47304392,3043.3,3043.2,0.001]
[1764221216361,8.64477002,3043.3,3043.2,0.001]
[1764221217456,12.10877002,3043.3,3043.2,0.001]
[1764221217650,8.63457002,3043.3,3043.2,0.001]
[1764221218157,8.64477002,3043.3,3043.2,0.001]
[1764221218563,6.09351473,3043.3,3043.2,0.001]
[1764221219262,6.22518701,3043.3,3043.2,0.001]
[1764221219463,9.68918701,3043.3,3043.2,0.001]
[1764221228068,9.67898701,3043.3,3043.2,0.001]
[1764221228375,9.68918701,3043.3,3043.2,0.001]
[1764221231840,9.67898701,3043.3,3043.2,0.001]
[1764221232150,9.68918701,3043.3,3043.2,0.001]
[1764221232677,9.67898701,3043.3,3043.2,0.001]
[1764221234549,9.68918701,3043.3,3043.2,0.001]
[1764221237784,9.69118701,3043.3,3043.2,0.001]
[1764221238155,9.68098701,3043.3,3043.2,0.001]
[1764221238355,9.69118701,3043.3,3043.2,0.001]
[1764221238553,12.24712906,3043.3,3043.2,0.001]
[1764221240083,12.24712906,3043.3,3043.2,0.4902]
[1764221240084,7.81786189,3043.3,3043.2,0.4902]
[1764221240288,7.17845498,3043.3,3043.2,0.4902]
[1764221240453,7.58395898,3043.3,3043.2,0.9836]
[1764221240650,7.58395898,3043.3,3043.2,0.4902]
[1764221241661,7.58395898,3043.3,3043.2,0.9836]
[1764221241963,7.58395898,3043.3,3043.2,0.4902]
[1764221242787,7.41256577,3043.3,3043.2,0.4902]
[1764221243578,6.87538949,3043.3,3043.2,0.9836]
[1764221243793,7.28089349,3043.3,3043.2,0.9836]
[1764221244106,6.87538949,3043.3,3043.2,0.9836]
[1764221244769,7.28089349,3043.3,3043.2,0.9836]
[1764221245403,3.76524654,3043.3,3043.2,0.9836]
[1764221245565,4.49084065,3043.3,3043.2,0.9836]
[1764221251365,4.89634465,3043.3,3043.2,0.4902]
[1764221251567,8.46202472,3043.3,3043.2,0.001]
[1764221252478,8.91362472,3043.3,3043.2,0.001]